Cogmind - Beta 14 @@@ ROGUE MODE // 2024.12.21 @ 22:19:48 Player: lazy_engineer Result: Destroyed by G-34 Mercenary with Small Laser Performance ------------- Evolutions (0) 0 Regions Visited (1) 200 Robots Destroyed (13) 65 Value Destroyed (314) 314 Prototype IDs (0) 0 Alien Tech Used (0) 0 Bonus (0) 0 TOTAL SCORE: 579 Bonus ------- None Cogmind --------- Core Integrity 0/250 Matter 300/300 Energy 100/100 System Corruption 0% Temperature Cool (6) Movement Core (250) Ox4 Location -10/Materials Parts ------- > --- POWER (1) -------- (None) > --- PROPULSION (2) --- (None) > --- UTILITY (2) ------ Medium Storage Unit Signal Interpreter > --- WEAPON (2) ------- Light Assault Rifle Hammer > --- INVENTORY (10) --- Light Ion Engine Wheel Wheel Improved Terrain Scanner Seismic Detector Medium Laser Medium Laser Mining Laser Peak State ------------ > --- POWER ------------ Ion Engine > --- PROPULSION ------- Light Treads Wheel > --- UTILITY ---------- Small Storage Unit Signal Interpreter > --- WEAPON ----------- Medium Laser Light Assault Rifle > --- INVENTORY -------- Light Ion Engine Light Treads Wheel Improved Terrain Scanner Seismic Detector Medium Laser Mining Laser Hammer [Rating: 8] Favorites ----------- Power Ion Engine Engine Ion Engine Propulsion Light Treads Treads Light Treads Wheel Wheel Utility Signal Interpreter Device Seismic Detector Storage Medium Storage Unit Processor Signal Interpreter Weapon Light Assault Rifle Energy Gun Medium Laser Ballistic Gun Light Assault Rifle Impact Weapon Hammer Build | -11 -10 ------- Run | Yrd Mat Slots Evolved . | . . Power . | . . Propulsion . | . . Utility . | . . Weapon . | . . Parts Attached 12 | 7 5 Power 1 | 1 . Engine 1 | 1 . Core . | . . Reactor . | . . Propulsion 4 | 2 2 Treads 3 | 1 2 Leg . | . . Wheel 1 | 1 . Hover . | . . Flight . | . . Utility 4 | 2 2 Device 1 | 1 . Storage 2 | 1 1 Processor 1 | . 1 Hackware . | . . Protection . | . . Artifact . | . . Weapon 3 | 2 1 Energy Gun 1 | 1 . Energy Cannon . | . . Ballistic Gun 1 | 1 . Ballistic Cannon . | . . Launcher . | . . Special Weapon . | . . Impact Weapon 1 | . 1 Slashing Weapon . | . . Piercing Weapon . | . . Special Melee Weapon . | . . Unidentified Prototypes . | . . Parts Lost 3 | . 3 Power 1 | . 1 Propulsion 2 | . 2 Utility . | . . Weapon . | . . Highest Loss Streak 1 | . 1 To Critical Strikes . | . . Average Slot Usage (%) 89 | . 89 Engine 8 | . 8 Treads 15 | . 15 Wheel 8 | . 8 Device 2 | . 2 Storage 14 | . 14 Processor 12 | . 12 Energy Gun 6 | . 6 Ballistic Gun 14 | . 14 Impact Weapon 8 | . 8 Peak Build Rating 8 | 7 8 Average Rating 6 | 5 7 On Entrance 3 | . 7 Naked Turns . | . . Heaviest Build 18 | 14 18 Greatest Support 40 | 10 40 Greatest Overweight (x) 2 | 2 1 Average Overweight (x) . | . . Largest Inventory Capacity 10 | 8 10 Average Capacity 8 | 7 9 Most Carried 8 | 6 8 Average Carried 6 | 4 7 Final Capacity 10 | 8 10 Final Carried 8 | 6 8 Class Distribution -------------------- 100% | Mutant Dominant Class ---------------- Mutant | -10/Materials Resources | -11 -10 ----------- Run | Yrd Mat Matter Collected 341 | 291 50 Remotely . | . . Salvage Created 442 | 166 276 Parts 20 | 11 9 Haulers Intercepted . | . . Recyclers Shooed 1 | 1 . Parts Field Recycled . | . . Retrieved Matter . | . . Parts Self-Destructed . | . . Prevented . | . . Kills | -11 -10 ------- Run | Yrd Mat Combat Hostiles Destroyed 7 | . 7 Melee 2 | . 2 Classes Destroyed 4 | 2 2 Tunneler 4 | 4 . Recycler 1 | 1 . Watcher 1 | . 1 Grunt 7 | . 7 Best Kill Streak 3 | 3 3 Combat Bots Only 3 | . 3 Max Kills in Single Turn 1 | 1 1 Gunslinging . | . . Exploded . | . . Melee 1 | . 1 Uniques/NPCs Destroyed . | . . Combat | -11 -10 -------- Run | Yrd Mat Hostile Shots Fired 91 | . 91 Missed 24 | . 24 Damage Taken 881 | . 881 Core 250 | . 250 Absorbed by Shields . | . . Core Remaining (%) 100 | 100 . Volleys Fired 26 | 21 5 Largest 2 | 2 2 Hottest 70 | 70 70 Shots Fired 51 | 42 9 Gun 51 | 42 9 Cannon . | . . Launcher . | . . Special . | . . Kinetic 26 | 21 5 Thermal 25 | 21 4 Explosive . | . . Electromagnetic . | . . Robot Hit Streak 5 | 5 4 Robot Miss Streak 4 | 2 4 Penetration Max . | . . Secondary Targets . | . . Shots Hit Robots 83 | 26 57 Core Hits 12 | 8 4 Critical Kills . | . . Critical Parts Destroyed 2 | 1 1 Critical Strikes 4 | 2 2 Burn 2 | 1 1 Destroy 1 | 1 . Smash 1 | . 1 Melee Attacks 79 | . 79 Impact 79 | . 79 Slashing . | . . Piercing . | . . Sneak Attacks 1 | . 1 Combat Hostiles . | . . Follow-up Attacks . | . . Damage Inflicted 1624 | 259 1365 Guns 307 | 259 48 Cannons . | . . Explosions . | . . Melee 1317 | . 1317 Ramming . | . . Kinetic 132 | 109 23 Thermal 175 | 150 25 Explosive . | . . Electromagnetic . | . . Impact 1317 | . 1317 Slashing . | . . Piercing . | . . Highest Corruption . | . . Average Corruption . | . . Corruption Purged . | . . Corruption Blocked . | . . Overload Shots . | . . Overflow Damage 87 | . 87 Projectiles . | . . Explosions . | . . Melee 87 | . 87 Knockbacks 13 | . 13 Impact 10 | . 10 Kinetic . | . . Secondary 3 | . 3 Self-Inflicted Damage . | . . Shots . | . . Rammed . | . . Targets Rammed . | . . Kicked . | . . Crushed . | . . Highest Temperature 80 | 80 50 Average Temperature 34 | 36 23 Received Heat Transfer 528 | . 528 Siege Activations . | . . Robots Corrupted 5 | . 5 Combat Hostiles 5 | . 5 Parts Fried 3 | . 3 Impact Corruptions 7 | . 7 Robots Melted . | . . Combat Hostiles . | . . Parts Melted 2 | 1 1 Heat Transferred 666 | 518 148 Parts Sabotaged . | . . Parts Stolen . | . . Parts Stripped . | . . Power Chain Reactions . | . . Alert | -11 -10 ------- Run | Yrd Mat Peak Influence 304 | 25 304 Initial 16 | . 16 Average 89 | 12 108 Maximum Alert Level 1 | . 1 Low Security (%) 81 | 100 76 Level 1 18 | . 23 Level 2 . | . . Level 3 . | . . Level 4 . | . . Level 5 . | . . High Security . | . . Max Security . | . . Squads Dispatched 1 | . 1 Investigation 1 | . 1 Extermination . | . . Reinforcement . | . . Assault . | . . Garrison . | . . Intercept . | . . Searches Triggered . | . . Construction Impeded . | . . Haulers Reinforced . | . . Active Scanning Responses . | . . Cargo Convoy Interrupts . | . . Stealth | -11 -10 --------- Run | Yrd Mat Distress Signals 1 | . 1 Communications Jammed . | . . Distress Signals . | . . Times Spotted 17 | . 17 Peak Tracking Total 5 | . 5 Tactical Retreats 3 | . 3 Traps | -11 -10 ------- Run | Yrd Mat Traps Triggered . | . . Indirectly . | . . Trap Hack Attempts . | . . Triggered . | . . Disarmed . | . . Reprogrammed . | . . Reused . | . . Traps Extracted . | . . Installed . | . . Triggered 1 | . 1 Machines | -11 -10 ---------- Run | Yrd Mat Machines Disabled . | . . Max in Single Turn . | . . Machines Repaired . | . . Machines Dismantled . | . . Machines Sabotaged . | . . Overloaded Fab Kills . | . . Hacking | -11 -10 --------- Run | Yrd Mat Machines Accessed 6 | . 6 Terminals 6 | . 6 Fabricators . | . . Repair Stations . | . . Recycling Units . | . . Scanalyzers . | . . Garrison Access . | . . Total Hacks 17 | . 17 Successful 6 | . 6 Failed 11 | . 11 Catastrophic . | . . Database Lockouts . | . . Manual 6 | . 6 Terminals 17 | . 17 Fabricators . | . . Repair Stations . | . . Recycling Units . | . . Scanalyzers . | . . Garrison Access . | . . Terminal Hacks 5 | . 5 Branch Access Points 1 | . 1 Locate Traps 1 | . 1 Hauler Manifests 2 | . 2 Zone Layout 1 | . 1 Fabricator Hacks . | . . Repair Station Hacks . | . . Recycling Unit Hacks . | . . Scanalyzer . | . . Garrison Access Hacks . | . . Unauthorized Hacks 1 | . 1 Terminals 1 | . 1 Operators 1 | . 1 Fabricators . | . . Repair Stations . | . . Recycling Units . | . . Scanalyzers . | . . Garrison Access . | . . Data Cores Recovered . | . . Used . | . . Hacking Detections 5 | . 5 Full Trace Events . | . . Feedback Events . | . . Feedback Blocked . | . . Robot Schematics Acquired . | . . Robots Built . | . . Authchips . | . . Time . | . . Total Robot Build Rating . | . . Part Schematics Acquired . | . . Parts Built . | . . Authchips . | . . Time . | . . Total Part Build Rating . | . . Parts Repaired . | . . Time . | . . Parts Recycled . | . . Recycled Matter . | . . Retrieved Matter . | . . Retrieved Components . | . . Parts Scanalyzed . | . . Part Schematics Acquired . | . . Parts Damaged . | . . Bothacking | -11 -10 ------------ Run | Yrd Mat Used RIF Installer . | . . Robots Hacked . | . . Non-combat . | . . Combat . | . . Robot Hacks Applied . | . . Relay Couplers Released . | . . Fabnet Peak Effective % . | . . Robots Rewired . | . . Allies Hacked . | . . Hacks Repelled . | . . Allies | -11 -10 -------- Run | Yrd Mat Total Allies . | . . Largest Group . | . . Highest-Rated Group . | . . Highest-Rated Ally . | . . Total Orders . | . . Ally Attacks . | . . Total Damage . | . . Kills . | . . Allies Corrupted . | . . Allies Melted . | . . Intel | -11 -10 ------- Run | Yrd Mat Robot Analysis Total . | . . Derelict Logs Recovered . | . . Drone Launches . | . . Drone Recoveries . | . . Exploration | -11 -10 ------------- Run | Yrd Mat Turns Passed 1053 | 213 840 Spaces Moved 616 | 142 474 Core 16 | 16 . Treads 108 | . 108 Legs . | . . Wheels 492 | 126 366 Hover . | . . Flight . | . . Fastest Speed 50 | 50 95 Average Speed 106 | 93 109 Slowest Speed 160 | 150 160 Overloaded Moves . | . . Propulsion Burnouts . | . . Robots Hopped . | . . Cave-ins Triggered . | . . Exploration Rate (%) 30 | 7 53 Regions Visited 1 Branch Regions . Pre-discovered Areas . | . . Known Exits Taken . | . . Unknown Exits Taken 1 | 1 . Scrap Searched . | . . Spaces Dug 1 | . 1 Terrain Destroyed 1 | . 1 Melee 1 | . 1 Projectile . | . . AOE . | . . Terrain Rammed . | . . Walls Destroyed . | . . Machines Disabled . | . . Actions | -11 -10 --------- Run | Yrd Mat Total 830 | 182 648 Wait 84 | 3 81 Move 615 | 141 474 Hop . | . . Pick Up 12 | 10 2 Fast Attach 3 | 3 . Attach 5 | 4 1 Detach 1 | . 1 Swap 4 | . 4 Drop 1 | . 1 Fire 26 | 21 5 Melee 79 | . 79 Ram . | . . Kick . | . . Crush . | . . Escape Stasis . | . . Rewire . | . . Trap . | . . Miscellaneous . | . . Route ------- -11/Scrapyard -10/Materials (discovered 3 exits: [*Mat x2] / *Min) History --------- Turn | Location | Event 33 | -11/Scrapyard | Discovered new exit (range 14) 214 | -11/Scrapyard | Entered Materials 218 | -10/Materials | Discovered new exit (range 16) 310 | -10/Materials | Build established: Mutant 508 | -10/Materials | Identified exit to Mines 603 | -10/Materials | Discovered new exit (range 9) 864 | -10/Materials | Discovered new exit (range 13) 1017 | -10/Materials | Core integrity fell below 50% 1043 | -10/Materials | Core integrity fell below 20% 1054 | -10/Materials | Destroyed by G-34 Mercenary with Small Laser Last Messages --------------- 00796_ G-47 Trooper knocked back. 00799_ Critical hit (Burn: +37). 00799_ G-47 Trooper knocked back. 00813_ Destroyed Imp. Heat Sink. 00813_ G-47 Trooper system corrupted by crushing effect. 00814_ G-47 Trooper system terminally corrupted. 00845_ G-34 Mercenary destroyed. 00864_ Connecting with Terminal... 00864_ EXIT=FOUND >>Layout(Zone) Retrieving Zone 8B layout... Downloaded map data. 00867_ R-06 Scavenger collects Aluminum Leg. 00870_ R-06 Scavenger collects Sml. Laser. 00906_ Sneak attack on A-02 Transporter. 00995_ K-01 Serf cleans the Electrolysis Chamber. 01006_ G-34 Mercenary knocked back. 01022_ K-01 Serf cleans the Recycling Unit. 01032_ Lgt. Treads destroyed. 01045_ G-47 Trooper knocked back. Map ----- +----------------------------------------------------+ | | | | | | | | | | | | | | | | | | | | | | | | | ?????????????????????????????????????????????????? | | ???###########???????????????????????????????????? | | ???# ! #???????????????????????????????????? | | ???#" """ #???????????????????????????????????? | | ####T """"" #???????#####??????????????????????## | | #" """"" #???????# ?????????????????????# | | # """"" #???????# """ #????????########## | | + """ #???????# """ #????????# # | | # = #???????# """ !#????????#""""" # | | ## #???????# #????????#""""" # | | ############???##### """ #????????#""""" # | | #??????????????# # "" #????????#""""" # | | #??????????????# < # "" #????????#""""" # | | #??????????????# # %@ #????????#""""" # | | #??????????????+ ###g######????????#""""" + | | #??????????????# ^ g% #??????????# # | | #??????????????# #??????????########## | | #??#####???????# ^ #################### | | #### #???????##^ ^ % | | # ########## ! | | " # !# ## ^""^ ##########+######### | | "T + # ## "Y # % #??####### | | # # """ # "" # !! """ !#??# | | # # """ u # !! """ #??# | | # ## # """ # # ! """ #??# | | # ##+### ####+### # #??# | | # % # """ ## # # #??# | | # + """ ## """ # # #??# | | # # """ ## "T" # #####+#######??# | | ###### # ## # ##############+ | | ?????# ################ | | ?????+ ########### | | ?????# #####+############## | | ?????#?? #????????## # # | | ?????????################ ?????????##""" """ # # | | ????????????????????????# ???????????????????????? | | #####???????????????????# ???????????????????????? | | [#???????????????????# ???????????????????????? | +----------------------------------------------------+ Best States ------------- Heat Dissipation 25 Energy Generation 10 Energy Capacity 250 Matter Stores 300 Matter Capacity 300 Sight Range 16 Terrain Scan Density 10 Evasion (%) 50 Recoil Reduction 2 Item Schematics ----------------- None Robot Schematics ------------------ None Fabricated ------------ Nothing Alien Tech Used ----------------- None Achievements -------------- None Challenges ------------ None Game ------ Seed NavigationUtilitySink Manual? 0 Play Time 00:12:25 Cumulative 39.2 hours Start 2024.12.21 @ 22:08:54 End 2024.12.21 @ 22:19:48 Sessions 1 Manual Loads 0 Difficulty Rogue Special Mode None Game No. 83 Rogue 83 Adventurer 0 Explorer 0 Win Type - Total 0 Types 0/0/0/0/0/0/0/0/0 Lore% 15 Gallery% 28 Achievement% 26 Wizard Run 0 Options --------- Layout 0 ASCII 0 Keyboard 0 Movement Mouse Keybinds 0 Fullscreen 1 Font 24/Smallcaps Map View 76x50 Zoom Use 0% Tactical HUD 1 Map Filters NONE Filters NONE Steam 1 RUN: ee8ba870-7ab4-4623-860e-7916e727ab32